Cogmind - Beta 13 @@@ ROGUE MODE // 2024.06.02 @ 19:34:29 Player: satan5 Result: Self-destructed Performance ------------- Evolutions (2) 1000 Regions Visited (3) 600 Robots Destroyed (43) 215 Value Destroyed (937) 937 Prototype IDs (5) 100 Alien Tech Used (0) 0 Bonus (0) 0 TOTAL SCORE: 2852 Bonus ------- None Cogmind --------- Core Integrity 529/550 Matter 263/300 Energy 265/265 System Corruption 0% Temperature Cool (0) Movement Treading (240) Ox1 Location -8/Materials Parts ------- > --- POWER (1) -------- Improved Ion Engine > --- PROPULSION (4) --- Light Treads Light Treads Light Treads Improved Treads > --- UTILITY (4) ------ Huge Storage Unit Improved Terrain Scanner Advanced Targeting Computer > --- WEAPON (2) ------- Autogun Minigun > --- INVENTORY (25) --- Ion Engine Cargo Storage Unit Heavy Armor Plating Hacking Suite Long-range Tractor Beam Spread Laser Assault Rifle Heavy Assault Rifle Heavy Assault Rifle Autogun Autogun Autogun Shotgun Rocket Launcher Rocket Launcher Concussive RPG (1) Improved Datajack Heavy Flail Peak State ------------ > --- POWER ------------ Improved Ion Engine > --- PROPULSION ------- Light Treads Light Treads Light Treads Improved Treads > --- UTILITY ---------- Huge Storage Unit Improved Terrain Scanner Advanced Targeting Computer > --- WEAPON ----------- Autogun Minigun > --- INVENTORY -------- Ion Engine Cargo Storage Unit Heavy Armor Plating Hacking Suite Long-range Tractor Beam Spread Laser Assault Rifle Heavy Assault Rifle Heavy Assault Rifle Autogun Autogun Autogun Shotgun Rocket Launcher Rocket Launcher Improved Datajack Heavy Flail [Rating: 23] Favorites ----------- Power Improved Ion Engine Engine Improved Ion Engine Propulsion Light Treads Treads Light Treads Leg Aluminum Leg Utility Improved Terrain Scanner Device Improved Terrain Scanner Storage Huge Storage Unit Processor Advanced Targeting Computer Weapon Autogun Energy Gun Medium Laser Ballistic Gun Autogun Launcher Rocket Launcher Build | -11 -10 -9 -8 ------- Run | Yrd Mat Mat Mat Slots Evolved 4 | . . 2 2 Power . | . . . . Propulsion 2 | . . 2 . Utility 2 | . . . 2 Weapon . | . . . . Parts Attached 33 | 6 4 21 2 Power 3 | 1 . 2 . Engine 3 | 1 . 2 . Core . | . . . . Reactor . | . . . . Propulsion 9 | 2 . 7 . Treads 7 | . . 7 . Leg 2 | 2 . . . Wheel . | . . . . Hover . | . . . . Flight . | . . . . Utility 5 | 1 1 2 1 Device 1 | . 1 . . Storage 3 | 1 . 2 . Processor 1 | . . . 1 Hackware . | . . . . Protection . | . . . . Artifact . | . . . . Weapon 16 | 2 3 10 1 Energy Gun 2 | 2 . . . Energy Cannon . | . . . . Ballistic Gun 11 | . 3 7 1 Ballistic Cannon . | . . . . Launcher 3 | . . 3 . Special Weapon . | . . . . Impact Weapon . | . . . . Slashing Weapon . | . . . . Piercing Weapon . | . . . . Special Melee Weapon . | . . . . Unidentified Prototypes . | . . . . Parts Lost 4 | . . 4 . Power . | . . . . Propulsion 2 | . . 2 . Utility . | . . . . Weapon 2 | . . 2 . Highest Loss Streak 2 | . . 2 . To Critical Strikes . | . . . . Average Slot Usage (%) 92 | . 85 99 84 Engine 11 | . 14 11 9 Treads 29 | . . 36 36 Leg 9 | . 28 6 . Device 8 | . . 11 9 Storage 11 | . 14 11 9 Ballistic Gun 20 | . 23 21 18 Naked Turns . | . . . . Heaviest Build 95 | 11 13 95 94 Greatest Support 83 | 20 20 83 83 Greatest Overweight (x) 1 | 1 . 1 1 Average Overweight (x) . | . . . 1 Largest Inventory Capacity 25 | 8 8 25 25 Average Capacity 16 | 6 8 15 25 Most Carried 20 | 5 8 14 20 Average Carried 11 | 3 6 10 17 Final Capacity 25 | 8 8 25 25 Final Carried 20 | 3 8 14 20 Class Distribution -------------------- 67% | Scavenger-Mutant 32% | Mutant Dominant Class ---------------- Mutant | -10/Materials Scavenger-Mutant | -9/Materials Scavenger-Mutant | -8/Materials Resources | -11 -10 -9 -8 ----------- Run | Yrd Mat Mat Mat Matter Collected 1143 | 200 113 693 137 Remotely . | . . . . Salvage Created 1233 | 23 94 878 238 Parts 109 | 3 14 78 14 Haulers Intercepted 5 | . . 4 1 Recyclers Shooed 2 | . . 1 1 Parts Field Recycled . | . . . . Retrieved Matter . | . . . . Parts Self-Destructed . | . . . . Prevented . | . . . . Kills | -11 -10 -9 -8 ------- Run | Yrd Mat Mat Mat Combat Hostiles Destroyed 29 | . 7 19 3 Guns 21 | . 7 11 3 AOE 8 | . . 8 . Classes Destroyed 9 | 1 1 6 1 Worker 1 | . . 1 . Builder 2 | . . 2 . Tunneler 1 | 1 . . . Hauler 5 | . . 4 1 Watcher 5 | . . 4 1 Swarmer 15 | . 7 8 . Grunt 6 | . . 5 1 Sentry 7 | . . 6 1 Hunter 1 | . . . 1 Best Kill Streak 5 | 1 3 4 5 Combat Bots Only 3 | . 3 3 3 Max Kills in Single Turn 3 | 1 2 3 1 Gunslinging . | . . . . Exploded 2 | . . 2 . Melee . | . . . . Uniques/NPCs Destroyed . | . . . . Combat | -11 -10 -9 -8 -------- Run | Yrd Mat Mat Mat Hostile Shots Fired 119 | . 41 72 6 Missed 36 | . 14 21 1 Damage Taken 1510 | . 214 1215 81 Core 308 | . 94 193 21 Absorbed by Shields . | . . . . Core Remaining (%) 71 | 100 62 51 . Volleys Fired 100 | 1 17 64 18 Largest 2 | 2 2 2 2 Hottest 90 | 90 70 46 48 Shots Fired 193 | 2 34 121 36 Gun 187 | 2 34 115 36 Cannon . | . . . . Launcher 6 | . . 6 . Special . | . . . . Kinetic 180 | . 29 115 36 Thermal 7 | 2 5 . . Explosive 6 | . . 6 . Electromagnetic . | . . . . Robot Hit Streak 18 | 2 3 8 18 Robot Miss Streak 5 | . 4 5 2 Penetration Max . | . . . . Secondary Targets . | . . . . Shots Hit Robots 120 | 2 14 79 25 Core Hits 66 | 1 9 45 11 Critical Kills . | . . . . Critical Parts Destroyed 1 | . . . 1 Critical Strikes 1 | . . . 1 Destroy 1 | . . . 1 Melee Attacks . | . . . . Impact . | . . . . Slashing . | . . . . Piercing . | . . . . Sneak Attacks . | . . . . Combat Hostiles . | . . . . Follow-up Attacks . | . . . . Damage Inflicted 2229 | 24 168 1675 362 Guns 1601 | 24 168 1047 362 Cannons . | . . . . Explosions 628 | . . 628 . Melee . | . . . . Ramming . | . . . . Kinetic 1565 | . 156 1047 362 Thermal 240 | 24 12 204 . Explosive 424 | . . 424 . Electromagnetic . | . . . . Impact . | . . . . Slashing . | . . . . Piercing . | . . . . Highest Corruption 1 | . . 1 . Average Corruption 1 | . . 1 . Corruption Purged . | . . . . Corruption Blocked . | . . . . Effects 3 | . . 3 . Message Errors 1 | . . 1 . Matter Fused 2 | . . 2 . Overload Shots . | . . . . Overflow Damage 65 | . . 65 . Projectiles . | . . . . Explosions 65 | . . 65 . Melee . | . . . . Knockbacks . | . . . . Impact . | . . . . Kinetic . | . . . . Secondary . | . . . . Self-Inflicted Damage 373 | . . 373 . Shots 4 | . . 4 . Rammed . | . . . . Targets Rammed . | . . . . Kicked . | . . . . Crushed . | . . . . Highest Temperature 50 | 30 50 28 . Average Temperature 13 | 18 24 6 . Received Heat Transfer 267 | . . 267 . Siege Activations . | . . . . Robots Corrupted . | . . . . Combat Hostiles . | . . . . Parts Fried . | . . . . Impact Corruptions . | . . . . Robots Melted . | . . . . Combat Hostiles . | . . . . Parts Melted . | . . . . Heat Transferred 299 | 62 37 200 . Parts Sabotaged . | . . . . Parts Stolen . | . . . . Parts Stripped . | . . . . Power Chain Reactions . | . . . . Alert | -11 -10 -9 -8 ------- Run | Yrd Mat Mat Mat Peak Influence 351 | 5 290 351 136 Initial 106 | . 3 46 106 Average 167 | . 128 208 119 Maximum Alert Level 1 | . 1 1 . Low Security (%) 64 | 100 78 43 100 Level 1 35 | . 21 56 . Level 2 . | . . . . Level 3 . | . . . . Level 4 . | . . . . Level 5 . | . . . . High Security . | . . . . Max Security . | . . . . Squads Dispatched 3 | . 1 1 1 Investigation 3 | . 1 1 1 Extermination . | . . . . Reinforcement . | . . . . Assault . | . . . . Garrison . | . . . . Intercept . | . . . . Searches Triggered . | . . . . Construction Impeded . | . . . . Haulers Reinforced . | . . . . Active Scanning Responses . | . . . . Cargo Convoy Interrupts . | . . . . Stealth | -11 -10 -9 -8 --------- Run | Yrd Mat Mat Mat Distress Signals 5 | . 2 2 1 Communications Jammed . | . . . . Distress Signals . | . . . . Times Spotted 52 | . 16 29 7 Peak Tracking Total 7 | . 4 7 3 Tactical Retreats 2 | . 2 . . Traps | -11 -10 -9 -8 ------- Run | Yrd Mat Mat Mat Traps Triggered 3 | . . 2 1 Indirectly . | . . . . Trap Hack Attempts . | . . . . Triggered . | . . . . Disarmed . | . . . . Reprogrammed . | . . . . Reused . | . . . . Traps Extracted . | . . . . Installed . | . . . . Triggered . | . . . . Machines | -11 -10 -9 -8 ---------- Run | Yrd Mat Mat Mat Machines Disabled 9 | . . 7 2 Max in Single Turn 4 | . . 4 1 Machines Repaired . | . . . . Machines Dismantled . | . . . . Machines Sabotaged . | . . . . Overloaded Fab Kills . | . . . . Hacking | -11 -10 -9 -8 --------- Run | Yrd Mat Mat Mat Machines Accessed 16 | . 7 9 . Terminals 14 | . 6 8 . Fabricators . | . . . . Repair Stations . | . . . . Recycling Units 2 | . 1 1 . Scanalyzers . | . . . . Garrison Access . | . . . . Total Hacks 52 | . 27 25 . Successful 25 | . 15 10 . Failed 27 | . 12 15 . Catastrophic 3 | . . 3 . Database Lockouts . | . . . . Manual 44 | . 21 23 . Terminals 48 | . 25 23 . Fabricators . | . . . . Repair Stations . | . . . . Recycling Units 4 | . 2 2 . Scanalyzers . | . . . . Garrison Access . | . . . . Terminal Hacks 10 | . 8 2 . Record 1 | . 1 . . Prototype ID Bank 4 | . 4 . . Unreport Threat 1 | . . 1 . Recall Investigation 2 | . 1 1 . Hauler Manifests 1 | . 1 . . Zone Layout 1 | . 1 . . Fabricator Hacks . | . . . . Repair Station Hacks . | . . . . Recycling Unit Hacks . | . . . . Scanalyzer . | . . . . Garrison Access Hacks . | . . . . Unauthorized Hacks 15 | . 7 8 . Terminals 14 | . 6 8 . Track 1 | . . 1 . Assimilate 1 | . 1 . . Botnet 9 | . 4 5 . Disrupt 1 | . . 1 . Operators 2 | . 1 1 . Fabricators . | . . . . Repair Stations . | . . . . Recycling Units 1 | . 1 . . Mask 1 | . 1 . . Scanalyzers . | . . . . Garrison Access . | . . . . Data Cores Recovered . | . . . . Used . | . . . . Hacking Detections 16 | . 7 9 . Full Trace Events 2 | . 1 1 . Feedback Events 1 | . . 1 . Corruption 1 | . . 1 . Feedback Blocked . | . . . . Robot Schematics Acquired . | . . . . Robots Built . | . . . . Authchips . | . . . . Time . | . . . . Total Robot Build Rating . | . . . . Part Schematics Acquired . | . . . . Parts Built . | . . . . Authchips . | . . . . Time . | . . . . Total Part Build Rating . | . . . . Parts Repaired . | . . . . Time . | . . . . Parts Recycled . | . . . . Recycled Matter . | . . . . Retrieved Matter . | . . . . Retrieved Components . | . . . . Parts Scanalyzed . | . . . . Part Schematics Acquired . | . . . . Parts Damaged . | . . . . Bothacking | -11 -10 -9 -8 ------------ Run | Yrd Mat Mat Mat Used RIF Installer . | . . . . Robots Hacked . | . . . . Non-combat . | . . . . Combat . | . . . . Robot Hacks Applied . | . . . . Relay Couplers Released . | . . . . Fabnet Peak Effective % . | . . . . Robots Rewired . | . . . . Allies Hacked . | . . . . Hacks Repelled . | . . . . Allies | -11 -10 -9 -8 -------- Run | Yrd Mat Mat Mat Total Allies 1 | . 1 . . Largest Group 1 | . 1 . . Highest-Rated Group 10 | . 10 . . Highest-Rated Ally 10 | . 10 . . Total Orders . | . . . . Ally Attacks . | . . . . Total Damage . | . . . . Kills . | . . . . Allies Corrupted . | . . . . Allies Melted . | . . . . Intel | -11 -10 -9 -8 ------- Run | Yrd Mat Mat Mat Robot Analysis Total . | . . . . Derelict Logs Recovered . | . . . . Drone Launches . | . . . . Drone Recoveries . | . . . . Exploration | -11 -10 -9 -8 ------------- Run | Yrd Mat Mat Mat Turns Passed 2660 | 58 511 1449 642 Spaces Moved 1305 | 38 360 665 242 Core 16 | 16 . . . Treads 756 | . . 514 242 Legs 533 | 22 360 151 . Wheels . | . . . . Hover . | . . . . Flight . | . . . . Fastest Speed 50 | 50 120 120 240 Average Speed 171 | 94 120 178 240 Slowest Speed 240 | 120 120 240 240 Overloaded Moves . | . . . . Propulsion Burnouts . | . . . . Robots Hopped . | . . . . Cave-ins Triggered . | . . . . Exploration Rate (%) 38 | 2 69 56 27 Regions Visited 3 Branch Regions . Pre-discovered Areas . | . . . . Known Exits Taken . | . . . . Unknown Exits Taken 3 | 1 1 1 . Scrap Searched . | . . . . Spaces Dug . | . . . . Terrain Destroyed 51 | . . 51 . Melee . | . . . . Projectile . | . . . . AOE 51 | . . 51 . Terrain Rammed . | . . . . Walls Destroyed . | . . . . Machines Disabled . | . . . . Actions | -11 -10 -9 -8 --------- Run | Yrd Mat Mat Mat Total 1549 | 56 408 810 275 Wait 61 | 6 15 39 1 Move 1302 | 37 359 664 242 Hop . | . . . . Pick Up 35 | 6 9 11 9 Fast Attach 9 | 3 . 6 . Attach 7 | 3 1 2 1 Detach . | . . . . Swap 17 | . 3 13 1 Drop 18 | . 4 11 3 Fire 100 | 1 17 64 18 Melee . | . . . . Ram . | . . . . Kick . | . . . . Crush . | . . . . Escape Stasis . | . . . . Rewire . | . . . . Trap . | . . . . Miscellaneous . | . . . . Route ------- -11/Scrapyard -10/Materials (discovered 3 exits: *Mat x2 / [*Min]) -9/Materials (discovered 2 exits: *Mat / [*Min]) -8/Materials (discovered 1 exit: [*Sto]) History --------- Turn | Location | Event 14 | -11/Scrapyard | Discovered new exit (range 16) 59 | -11/Scrapyard | Entered Materials 165 | -10/Materials | Discovered new exit (range 21) 165 | -10/Materials | Discovered new exit (range 17) 316 | -10/Materials | Build established: Mutant 514 | -10/Materials | Discovered new exit (range 7) 570 | -10/Materials | Entered another Materials area 570 | -9/Materials | Evolved 2 slots: Propulsion x2 1050 | -9/Materials | Discovered new exit (range 16) 1191 | -9/Materials | Build established: Scavenger-Mutant 1277 | -9/Materials | Discovered new exit (range 6) 2019 | -9/Materials | Entered another Materials area 2019 | -8/Materials | Evolved 2 slots: Utility x2 2289 | -8/Materials | Discovered new exit (range 6) 2661 | -8/Materials | Self-destructed Last Messages --------------- 02454_ K-01 Serf collects debris. 02457_ K-01 Serf cleans the Terminal. 02461_ K-01 Serf collects debris. 02465_ R-06 Scavenger collects Heat Sink. 02470_ A-02 Transporter destroyed. 02470_ Terminal disabled. 02471_ K-01 Serf collects debris. 02472_ Acquired 50 matter. 02474_ K-01 Serf collects debris. 02477_ Acquired 57 matter. 02480_ K-01 Serf collects debris. 02484_ Acquired 30 matter. 02485_ K-01 Serf collects debris. 02523_ Acquired Concussive RPG. 02623_ K-01 Serf cleans the Electrolysis Chamber. 02629_ Connecting with Terminal... 02629_ Current location identified: Materials 02629_ Connecting with Terminal... 02658_ Destroyed Imp. Sensor Array. Map ----- +----------------------------------------------------+ | ??????????????????????????????????? | | ??????????????????????????????????? | | ??????????????????????????????????? | | ??????????????????????????????????? | | ??????????????????????????????????? | | ??????????????????????????????????? | | ??????????????????????????????????? | | ??????????????????????????????????? | | ?????????????????????????? ???????? | | ?????????????????????????? ???????? | | ?????????????????????????# #??????? | | ????????????????????????? ??"???? | | ????????????????????????? +?????? | | ?????????????????????? """ #?????? | | ???????????????????????""" #?????? | | ????????????????????????"" # ????? | | ???????????????????????? #?????? | | ????????????????????????? #?????? | | ?????????????????????????# #?????? | | ????????????????????###??# ##????? | | ??????????????????? ?# ####### | | ??????????????????# """?# # # | | ??????????????????# """?# + # | | ??????????????????# w""" # # """# | | ????????????????? # """ # # """# | | ??????????????????# """ @ # """# | | ??????????????????# # # # | | ??????????????#???# # + """# | | ??????????????????# ?# # """# | | ???????????????#??######?# # """# | | ?????????????????????????# # # | | ??????????????????#??????# # "T" # | | ??????????????????? ?????# # # | | ??????????????????#??????# ####### | | ????????????#??????? ???# #?????? | | ???????????????????? ???# #?????? | | ????????#???????####+#??## #????#? | | ??????????? ?? ? ??## #????#? | | ????????????????# ????# #???##? | | ????????????????# ??# #?????# | | ????????????????# #????# #?????# | | ????????????????# #????# #?????? | | ????????????????# ##?### ###???? | | ????????????????# #?## ! #??#? | | ????????????????# #### ! #???? | | ??????########??# #???? | | ??????# ![] ##! #### ##??? | | ???#??# ![ # = #?# #???? | | ????? # ![ #! ### #???? | | ??????# + % #?## ##???? | +----------------------------------------------------+ Best States ------------- Heat Dissipation 31 Energy Generation 12 Energy Capacity 265 Matter Stores 300 Matter Capacity 300 Sight Range 16 Terrain Scan Range 16 Terrain Scan Density 10 Evasion (%) 55 Targeting Accuracy 8 Recoil Reduction 4 Item Schematics ----------------- None Robot Schematics ------------------ None Fabricated ------------ Nothing Alien Tech Used ----------------- None Achievements -------------- None Challenges ------------ None Game ------ Seed EtherialModifiedTriangulator Manual? 0 Play Time 00:17:09 Cumulative 200.8 hours Start 2024.05.24 @ 21:28:15 End 2024.06.02 @ 19:34:29 Sessions 5 Manual Loads 0 Difficulty Rogue Special Mode None Game No. 81 Rogue 67 Adventurer 14 Explorer 0 Win Type - Total 14 Types 12/0/0/1/0/0/0/0/1 Lore% 69 Gallery% 79 Achievement% 63 Wizard Run 0 Options --------- Layout 1 ASCII 0 Keyboard 0 Movement Mouse Keybinds 0 Fullscreen 1 Font 20/SmallcapsGlow Map View 50x35 Zoom Use 0% Tactical HUD 1 Map Filters NONE Filters NONE Steam 1 RUN: 76fd9d28-a44a-4909-8db8-521eea87d43c